bitfinex/quotes_SOLUSD_20250228
["timestamp","ask_amount","ask_price","bid_price","bid_amount"]
[1740753452968,6.9276,144.35,144.27,312.03]
[1740753453143,0.14216157,144.39,144.27,312.03]
[1740753453337,2.7702,144.39,144.29,18.64964886]
[1740753453535,9.6958,144.39,144.28,13.16]
[1740753454056,2.7683,144.49,144.3,0.14216157]
[1740753454362,1.45216849,144.48,144.31,20.10384033]
[1740753454557,2.7683,144.49,144.36,0.14216157]
[1740753454741,6.918,144.55,144.42,18.79181043]
[1740753454939,2.7668,144.57,144.45,0.14216157]
[1740753455247,0.063,144.59,144.5,18.79181043]
[1740753455556,0.063,144.59,144.5,1.45230519]
[1740753455749,0.063,144.59,144.49,116.64]
[1740753455932,2.8294,144.59,144.49,116.64]
[1740753456138,2.8294,144.59,144.46,13.14]
[1740753456139,20.0,144.56,144.46,13.14]
[1740753456447,2.8294,144.59,144.49,312.0]
[1740753456852,20.063,144.59,144.47,162.07124886]
[1740753457042,0.063,144.59,144.46,13.14]
[1740753457355,20.063,144.59,144.46,13.14]
[1740753457555,20.063,144.59,144.47,18.64964886]
[1740753457757,0.063,144.59,144.5,0.14216157]
[1740753458062,0.063,144.59,144.51,1.45208681]
[1740753458238,0.063,144.59,144.51,18.64964886]
[1740753458853,0.063,144.59,144.51,13.08]
[1740753459051,20.063,144.59,144.51,13.08]
[1740753459555,20.0,144.57,144.51,13.08]
[1740753460157,1.59433006,144.58,144.51,13.08]
[1740753460158,0.063,144.59,144.51,13.08]
[1740753461060,0.14216157,144.56,144.51,13.08]
[1740753461358,20.0,144.57,144.51,13.08]
[1740753461558,0.14216157,144.56,144.44,18.64964886]
[1740753461759,20.0,144.53,144.46,12.98]
[1740753461944,2.063,144.59,144.46,12.98]
[1740753461945,0.20516157,144.59,144.46,12.98]
[1740753462143,0.20516157,144.59,144.47,18.64964886]
[1740753462346,0.063,144.59,144.47,18.64964886]
[1740753462554,0.063,144.59,144.49,18.79181043]
[1740753462865,0.063,144.59,144.52,0.14216157]
[1740753463043,0.063,144.59,144.53,18.64964886]
[1740753463239,0.063,144.59,144.58,312.0]
[1740753464169,0.063,144.59,144.47,149.42]
[1740753464343,20.0,144.58,144.47,12.92]
[1740753464677,0.14216157,144.57,144.47,12.92]
[1740753464854,9.6845,144.56,144.47,12.92]
[1740753465169,0.063,144.52,144.48,312.0]
[1740753465350,0.063,144.52,144.49,18.79181043]
[1740753465556,0.063,144.52,144.51,18.64964886]
[1740753465957,0.063,144.52,144.49,136.5]
[1740753466264,0.063,144.52,144.51,18.64964886]
[1740753466467,0.063,144.52,144.47,6.9216]
[1740753466679,0.063,144.52,144.48,12.9]
[1740753466981,0.14216157,144.51,144.39,136.5]
[1740753467154,0.14216157,144.51,144.39,12.9]
[1740753467480,0.14216157,144.49,144.4,12.88]
[1740753468090,0.063,144.52,144.4,14.33376075]
[1740753468292,0.063,144.52,144.41,18.79181043]
[1740753468460,0.063,144.52,144.44,0.14216157]
[1740753468663,0.063,144.52,144.51,312.0]
[1740753469479,0.063,144.52,144.51,318.9199]
[1740753469675,0.063,144.52,144.51,337.56954886]
[1740753469883,0.063,144.52,144.51,312.0]
[1740753470073,0.063,144.52,144.49,12.86]
[1740753470395,0.063,144.52,144.5,20.1026493]
[1740753470691,0.063,144.52,144.51,1.45240336]
[1740753470861,0.063,144.59,144.52,18.64964886]
[1740753471062,0.063,144.59,144.53,1.59414562]
[1740753471293,0.063,144.59,144.54,18.64964886]
[1740753471459,0.063,144.59,144.55,0.14216157]
[1740753471664,0.063,144.59,144.57,18.64964886]
[1740753471891,0.063,144.59,144.58,31.42964886]
[1740753472060,0.063,144.59,144.58,150.87381674]
[1740753472267,0.063,144.67,144.59,18.79181043]
[1740753472484,0.063,144.67,144.61,20.79181043]
[1740753472783,0.063,144.67,144.64,0.14216157]
[1740753472959,0.063,144.74,144.66,312.14216157]
[1740753473160,0.063,144.74,144.67,12.74]
[1740753473469,0.063,144.74,144.67,130.73070602]
[1740753473681,0.063,144.74,144.67,129.28]
[1740753474371,20.0,144.73,144.59,1.45133346]
[1740753474577,20.0,144.73,144.61,18.64964886]
[1740753474791,20.0,144.73,144.61,20.10098563]
[1740753475001,22.0728,144.73,144.62,1.45133854]
[1740753475205,0.063,144.74,144.67,18.79181043]
[1740753475496,0.063,144.74,144.69,18.79181043]
[1740753475661,0.063,144.74,144.71,18.64964886]
[1740753475867,0.063,144.74,144.73,18.79181043]
[1740753476067,0.063,144.74,144.73,155.29181043]
[1740753476481,0.063,144.74,144.73,467.14964886]
[1740753477173,0.063,144.74,144.73,312.0]
[1740753478384,0.063,144.74,144.68,12.72]
[1740753479091,0.063,144.74,144.6,136.5]
[1740753479273,0.063,144.74,144.64,12.7]
[1740753479876,0.063,144.74,144.65,12.68]
[1740753480591,0.063,144.74,144.65,149.18]
[1740753480798,0.063,144.74,144.65,12.68]
[1740753480995,0.063,144.74,144.61,144.86540092]
[1740753481290,0.063,144.74,144.66,312.0]
[1740753481874,0.063,144.74,144.62,149.16]
[1740753482069,0.063,144.74,144.59,1.45121965]
[1740753482275,3.59433006,144.73,144.6,12.66]
[1740753482489,0.14216157,144.71,144.52,138.5]
[1740753482696,0.14216157,144.71,144.53,14.11215773]
[1740753482899,0.14216157,144.71,144.54,18.64964886]
[1740753483197,20.79181043,144.69,144.53,12.66]
[1740753483378,0.14216157,144.67,144.53,12.66]
[1740753483579,18.79181043,144.65,144.48,136.5]
[1740753483788,0.14216157,144.6,144.47,12.62]
[1740753484296,0.14216157,144.68,144.49,2.0]
[1740753484489,0.14216157,144.68,144.5,1.45213227]
[1740753484680,18.79181043,144.64,144.45,6.9227]
[1740753484884,18.79181043,144.62,144.5,312.0]
[1740753485111,18.79181043,144.6,144.5,312.0]
[1740753485278,0.14216157,144.58,144.5,312.0]
[1740753485797,0.14216157,144.6,144.47,12.62]
[1740753485996,0.14216157,144.6,144.48,6.9212]
[1740753486307,0.14216157,144.6,144.47,12.62]
[1740753486477,18.79181043,144.58,144.47,12.62]
[1740753486677,0.14216157,144.59,144.47,19.5418]
[1740753487011,0.14216157,144.57,144.45,6.9228]
[1740753487315,1.45216849,144.56,144.43,6.9237]
[1740753487593,0.14216157,144.57,144.44,32.70295185]
[1740753487775,2.0744,144.63,144.45,18.79181043]
[1740753487978,1.45216849,144.65,144.48,0.14216157]
[1740753488176,1.45216849,144.68,144.52,20.14216157]
[1740753488379,12.211,144.69,144.54,18.64964886]
[1740753488685,12.211,144.69,144.53,12.58]
[1740753488686,18.64964886,144.67,144.53,12.58]
[1740753489015,0.14216157,144.62,144.53,12.58]
[1740753489190,0.14216157,144.6,144.53,12.58]
[1740753489392,18.79181043,144.6,144.53,12.58]
[1740753489687,0.14216157,144.6,144.53,12.58]
[1740753490081,3.52626849,144.64,144.53,12.58]
[1740753490286,3.52566849,144.68,144.53,19.4988]
[1740753490481,2.0735,144.68,144.54,18.64964886]
[1740753490784,1.45216849,144.71,144.56,18.64964886]
[1740753490984,8.4309,144.72,144.57,6.917]
[1740753491182,8.4309,144.72,144.56,18.64964886]
[1740753491183,18.79181043,144.69,144.55,252.98]
[1740753491383,0.14216157,144.67,144.55,123.3979]
[1740753491591,1.45216849,144.71,144.56,18.64964886]
[1740753491791,1.45216849,144.71,144.55,259.8979]
[1740753492094,1.45216849,144.71,144.62,312.0]
[1740753492310,9.88296849,144.72,144.62,312.0]
[1740753492616,20.79181043,144.71,144.62,312.0]
[1740753492784,0.14216157,144.68,144.55,129.02]
[1740753492986,2.14216157,144.64,144.47,116.46]
[1740753493190,18.79181043,144.62,144.48,19.4613]
[1740753493386,0.14216157,144.6,144.48,19.4613]
[1740753493587,0.14216157,144.58,144.48,19.4613]
[1740753493981,0.14216157,144.61,144.49,18.64964886]
[1740753494182,1.45216849,144.67,144.5,1.4524263]
[1740753494491,1.45216849,144.67,144.51,18.79181043]
[1740753494690,8.4308,144.72,144.55,18.79181043]
[1740753494888,8.4308,144.72,144.56,13.97160044]
[1740753495091,8.4308,144.72,144.57,24.2096]
[1740753495310,0.14216157,144.71,144.57,24.2096]
[1740753495494,8.4308,144.72,144.57,24.2096]
[1740753495495,6.3579,144.72,144.58,20.10125986]
[1740753495695,0.063,144.74,144.67,312.0]
[1740753496383,0.063,144.74,144.64,12.52]
[1740753497085,0.20516157,144.74,144.64,12.52]
[1740753497289,0.063,144.74,144.64,12.52]
[1740753497485,0.14216157,144.72,144.64,12.52]
[1740753497709,20.0,144.68,144.64,12.52]
[1740753497911,1.45216849,144.72,144.64,12.52]
[1740753498094,0.063,144.74,144.64,12.52]
[1740753498285,0.063,144.74,144.68,20.0]
[1740753498483,0.063,144.74,144.69,1.45073223]
[1740753498781,0.063,144.74,144.7,18.64964886]
[1740753499108,0.063,144.74,144.64,12.52]
[1740753499288,20.0,144.73,144.64,12.52]
[1740753499491,0.14216157,144.72,144.66,312.0]
[1740753499793,0.063,144.74,144.66,312.0]
[1740753499992,0.063,144.74,144.64,12.52]
[1740753499993,20.0,144.73,144.64,12.52]
[1740753500299,0.14216157,144.72,144.64,12.52]
[1740753500499,20.0,144.73,144.64,12.52]
[1740753500707,0.063,144.74,144.64,12.52]
[1740753500998,0.063,144.74,144.65,18.64964886]
[1740753501378,0.063,144.74,144.66,0.14216157]
[1740753501578,0.063,144.74,144.67,18.64964886]
[1740753501798,0.063,144.74,144.69,0.14216157]
[1740753502105,0.063,144.74,144.7,18.64964886]
[1740753502685,0.063,144.74,144.69,116.42]
[1740753502880,0.063,144.74,144.73,312.0]
[1740753503590,0.063,144.74,144.68,12.52]
[1740753503901,20.063,144.74,144.68,12.52]
[1740753504283,18.79181043,144.73,144.68,12.52]
[1740753504483,20.0,144.7,144.63,12.48]
[1740753504905,0.063,144.74,144.63,12.48]
[1740753505406,0.14216157,144.71,144.63,12.48]
[1740753505601,20.14216157,144.65,144.58,0.063]
[1740753506183,20.0,144.65,144.58,0.063]
[1740753506383,0.14216157,144.64,144.58,0.063]
[1740753506584,0.14216157,144.64,144.58,312.063]
[1740753506788,0.14216157,144.64,144.58,0.063]
[1740753507004,20.0,144.65,144.58,0.063]
[1740753507201,5.182,144.73,144.58,0.063]
[1740753507399,2.0728,144.73,144.59,25.70781043]
[1740753507604,0.063,144.74,144.61,18.79181043]
[1740753507906,22.1357,144.74,144.61,136.5]
[1740753508102,0.063,144.74,144.63,18.64964886]
[1740753508294,0.14216157,144.73,144.61,136.5]
[1740753508493,2.1357,144.74,144.61,136.5]
[1740753508692,2.1357,144.74,144.61,1.45133685]
[1740753508885,22.1357,144.74,144.61,1.45133685]
[1740753509090,0.14216157,144.72,144.59,136.5]
[1740753509285,0.14216157,144.72,144.58,6.9792]
[1740753509286,2.0735,144.68,144.6,12.38]
[1740753509700,2.0735,144.68,144.61,312.0]
[1740753509904,1.51516849,144.74,144.61,312.0]
[1740753510088,2.0728,144.73,144.62,18.64964886]
[1740753510297,2.1357,144.74,144.64,18.64964886]
[1740753510705,0.063,144.74,144.65,1.45100665]
[1740753511229,0.063,144.74,144.66,18.64964886]
[1740753511393,0.063,144.74,144.64,6.9137]
[1740753511591,0.063,144.74,144.63,252.92]
[1740753511796,0.063,144.74,144.64,18.64964886]
[1740753512008,0.063,144.74,144.65,1.45101432]
[1740753513717,0.063,144.74,144.73,324.32]
[1740753514111,0.063,144.74,144.73,12.32]
[1740753515000,0.063,144.74,144.64,1.45099146]
[1740753515211,0.063,144.74,144.68,20.0]
[1740753515412,0.063,144.74,144.7,18.79181043]
[1740753515612,0.063,144.74,144.72,18.79181043]
[1740753515821,0.063,144.74,144.73,12.3]
[1740753516521,0.063,144.74,144.65,143.413]
[1740753516702,0.063,144.74,144.71,12.26]
[1740753517104,0.063,144.74,144.71,324.26]
[1740753517507,0.063,144.74,144.71,312.0]
[1740753517707,0.063,144.74,144.69,18.79181043]
[1740753517907,0.063,144.74,144.71,18.64964886]
[1740753518106,0.063,144.74,144.7,137.95026645]
[1740753518308,0.063,144.74,144.67,12.24]
[1740753518508,0.063,144.74,144.68,18.64964886]
[1740753518714,0.063,144.74,144.71,0.14216157]
[1740753518908,0.063,144.74,144.72,20.09961761]
[1740753519107,0.063,144.74,144.73,0.14216157]
[1740753519404,0.063,144.74,144.73,25.70121043]
[1740753519603,0.0001,144.74,144.73,164.20121043]
[1740753520016,0.0001,144.74,144.73,162.20121043]
[1740753520209,0.0001,144.74,144.73,25.55904886]
[1740753520524,0.0001,144.74,144.7,1.44990662]
[1740753520844,0.0001,144.74,144.73,312.0]
[1740753521410,0.0001,144.74,144.73,330.64964886]
[1740753521639,0.0001,144.74,144.73,312.0]
[1740753521926,0.0001,144.74,144.73,319.05156157]
[1740753522229,0.0001,144.74,144.73,337.55904886]
[1740753522425,0.0001,144.74,144.73,337.70121043]
[1740753522604,0.0001,144.74,144.73,337.55904886]
[1740753523210,0.0001,144.74,144.73,312.0]
[1740753523823,0.0001,144.74,144.73,330.64964886]
[1740753524026,0.0001,144.74,144.73,330.79181043]
[1740753524226,0.0001,144.74,144.73,337.70121043]
[1740753524419,0.0001,144.74,144.73,474.20121043]
[1740753524813,0.0001,144.74,144.73,477.69859778]
[1740753525731,0.0001,144.74,144.73,479.69859778]
[1740753526234,2.0708,144.87,144.73,479.69859778]
[1740753526235,2.0708,144.87,144.77,0.14216157]
[1740753526432,2.281489,144.88,144.79,0.14216157]
[1740753526631,2.281489,144.88,144.78,32.31913136]
[1740753527544,2.281489,144.88,144.79,6.9065]
[1740753528235,2.281489,144.88,144.79,143.4065]
[1740753528618,2.281489,144.88,144.81,6.9056]
[1740753529321,2.281489,144.88,144.87,312.0]
[1740753529720,0.210789,144.88,144.87,312.0]
[1740753529939,0.210789,144.88,144.87,324.22]
[1740753531237,0.210789,144.88,144.87,331.1227]
[1740753531541,0.210789,144.88,144.87,349.77234886]
[1740753531740,8.9e-05,144.91,144.9,0.14216157]
[1740753531917,8.9e-05,144.91,144.9,158.74005339]
[1740753532241,8.9e-05,144.91,144.9,18.64964886]
[1740753532539,8.9e-05,144.91,144.88,1.44845082]
[1740753532738,8.9e-05,144.91,144.87,11.9027]
[1740753533122,8.9e-05,144.91,144.88,18.64964886]
[1740753533439,8.9e-05,144.91,144.87,5.0]
[1740753535044,8.9e-05,144.91,144.88,312.0]
[1740753535844,8.9e-05,144.91,144.87,5.0]
[1740753536045,20.000089,144.91,144.87,5.0]
[1740753536623,1.59433006,144.9,144.87,5.0]
[1740753536829,20.0,144.88,144.87,5.0]
[1740753537030,0.14216157,144.87,144.8,12.22]
[1740753537330,0.14216157,144.83,144.7,6.9108]
[1740753537531,20.24397892,144.83,144.69,123.1712]
[1740753537734,18.79181043,144.79,144.7,12.22]
[1740753537935,0.14216157,144.8,144.7,12.22]
[1740753538142,20.0,144.82,144.71,1.45064671]
[1740753538345,0.14216157,144.84,144.71,3.43528078]
[1740753538656,12.213,144.85,144.72,20.0999039]
[1740753538833,2.0,144.9,144.72,20.0999039]
[1740753538834,3.43675456,144.91,144.81,312.0]
[1740753539036,2.0703,144.9,144.81,312.0]
[1740753539267,3.45216849,144.89,144.74,12.22]
[1740753539554,0.14216157,144.86,144.74,30.86964886]
[1740753539859,7.2462,144.9,144.74,148.72]
[1740753540156,0.03,144.88,144.75,18.64964886]
[1740753540342,0.03,144.88,144.77,3.50625051]
[1740753540565,0.03,144.88,144.81,20.0]
[1740753540770,0.03,144.88,144.83,6.9046]
[1740753541087,0.03,144.88,144.82,12.22]
[1740753541260,0.03,144.88,144.83,0.14216157]
[1740753541450,0.03,144.88,144.85,18.79181043]
[1740753541651,0.03,144.88,144.87,38.79181043]
[1740753541944,0.03,144.88,144.86,1.4487038]
[1740753542165,0.03,144.88,144.87,332.14216157]
[1740753542363,8.9e-05,144.91,144.87,332.0]
[1740753542577,8.9e-05,144.91,144.87,448.5]
[1740753542784,8.9e-05,144.91,144.86,6.9029]
[1740753543070,8.9e-05,144.91,144.86,143.4029]
[1740753543277,8.9e-05,144.91,144.86,144.85190309]
[1740753543477,8.9e-05,144.91,144.86,6.9029]
[1740753543675,8.9e-05,144.91,144.83,12.22]
[1740753544161,8.9e-05,144.91,144.84,18.64964886]
[1740753544361,8.9e-05,144.91,144.83,12.22]
[1740753544764,8.9e-05,144.91,144.85,6.9036]
[1740753545075,8.9e-05,144.91,144.88,2.0]
[1740753545286,8.9e-05,144.91,144.9,2.14216157]
[1740753545466,0.063,144.98,144.94,20.0]
[1740753545775,0.063,144.98,144.97,312.0]
[1740753545950,0.0001,144.98,144.97,330.64964886]
[1740753546153,0.0001,144.98,144.97,583.40964886]
[1740753546351,0.0001,144.99,144.97,583.55181043]
[1740753546551,0.0001,144.99,144.98,20.23940482]
[1740753546763,0.0001,144.99,144.98,163.63690482]
[1740753546966,0.0001,144.99,144.98,162.18931043]
[1740753547761,0.0001,144.99,144.98,165.58836376]
[1740753547969,0.0001,144.99,144.98,3.39905333]
[1740753548175,0.0001,144.99,144.98,10.4387149]
[1740753548370,0.0001,144.99,144.98,167.03620561]
[1740753548685,0.0001,145.0,144.99,18.79181043]
[1740753548884,2.0664,145.18,145.01,38.79181043]
[1740753549180,1.45216849,145.19,145.04,0.14216157]
[1740753549181,2.0662,145.19,145.04,0.14216157]
[1740753549385,14.5607,145.2,145.06,0.14216157]
[1740753549567,0.2,145.2,145.16,312.0]
[1740753549972,0.2,145.2,145.12,12.22]
[1740753549973,0.2,145.2,145.19,20.0]
[1740753550162,0.2,145.2,145.16,1.4458593]
[1740753550353,0.2,145.2,145.15,3.49757161]
[1740753550756,0.2,145.2,145.12,12.22]
[1740753551676,2.2661,145.2,145.12,12.22]
[1740753551856,20.2,145.2,145.12,12.22]
[1740753552054,22.2661,145.2,145.12,12.22]
[1740753552268,2.14216157,145.19,145.08,116.2]
[1740753552466,0.14216157,145.17,145.08,116.2]
[1740753552671,20.14216157,145.17,145.08,116.2]
[1740753552873,20.14216157,145.17,145.09,12.2]
[1740753553079,0.14216157,145.15,145.1,312.0]
[1740753553285,20.0,145.16,145.09,12.2]
[1740753553473,0.14216157,145.15,145.09,12.2]
[1740753553680,0.14216157,145.15,145.05,12.2]
[1740753553885,20.0,145.16,145.05,12.2]
[1740753554263,0.14216157,145.15,145.05,12.2]
[1740753554875,2.0669,145.14,145.05,12.2]
[1740753555078,2.0662,145.19,145.05,19.094]
[1740753555382,0.14216157,145.18,145.05,155.594]
[1740753555585,2.0662,145.19,145.05,155.594]
[1740753556280,2.0662,145.19,145.1,312.0]
[1740753556681,2.2661,145.2,145.1,143.3916]
[1740753557177,2.2661,145.2,145.09,6.8922]
[1740753557366,0.2,145.2,145.12,20.0]
[1740753557573,0.2,145.2,145.13,13.64622677]
[1740753558378,0.2,145.2,145.15,3.52603532]
[1740753558582,0.2,145.2,145.14,4.28956654]
[1740753558780,2.2661,145.2,145.14,4.28956654]
[1740753559314,0.2,145.2,145.14,4.28956654]
[1740753559464,2.2661,145.2,145.14,4.28956654]
[1740753559777,8.88346849,145.2,145.14,4.28956654]
[1740753559976,2.2661,145.2,145.14,4.28956654]
[1740753560181,2.2661,145.2,145.12,12.2]
[1740753560392,7.4313,145.2,145.12,12.2]
[1740753561469,0.14216157,145.19,145.08,12.2]
[1740753561807,2.14216157,145.19,145.08,12.2]
[1740753561971,0.14216157,145.17,145.08,12.2]
[1740753562173,20.14216157,145.17,145.08,12.2]
[1740753562382,20.0,145.17,145.08,12.2]
[1740753562574,0.14216157,145.15,145.03,122.85809035]
[1740753562780,1.45216849,145.14,145.08,312.0]
[1740753562975,28.68546849,145.16,145.08,312.0]
[1740753563375,0.14216157,145.15,145.04,15.57840588]
[1740753563668,0.14216157,145.13,145.04,12.2]
[1740753564287,1.45216849,145.12,145.04,12.2]
[1740753564474,2.0669,145.14,145.04,12.2]
[1740753564678,1.59433006,145.13,144.98,6.79809035]
[1740753565004,0.14216157,145.12,145.0,3.48692597]
[1740753565174,1.45216849,145.13,145.0,139.98692597]
[1740753565374,2.0669,145.14,145.0,139.98692597]
[1740753565775,0.14216157,145.12,145.0,3.48692597]
[1740753566300,0.14216157,145.12,145.04,312.0]
[1740753566508,2.0673,145.11,145.04,312.0]
[1740753566713,3.51946849,145.11,145.04,312.0]
[1740753566870,0.14216157,145.1,145.04,312.0]
[1740753567072,2.14216157,145.1,145.04,312.0]
[1740753567373,0.14216157,145.08,145.04,312.0]
[1740753567690,20.64964886,145.07,144.96,19.0783]
[1740753567882,2.14216157,145.04,144.96,12.18]
[1740753568085,2.14216157,145.02,144.93,7.15758818]
[1740753568287,1.45216849,145.01,144.91,25.89879035]
[1740753568473,2.0688,145.01,144.91,19.1007]
[1740753569083,2.0683,145.04,144.91,37.80138099]
[1740753569285,2.0678,145.08,144.95,20.0]
[1740753569580,4.0678,145.08,144.95,20.0]
[1740753569804,2.0,145.06,144.91,172.8527]
[1740753569991,0.14216157,145.05,144.91,36.3527]
[1740753570185,0.14216157,145.07,144.94,20.0]
[1740753570390,2.0678,145.08,144.95,20.0]
[1740753570601,3.51976849,145.09,145.0,312.0]
[1740753570905,20.79181043,145.08,145.0,312.0]
[1740753571102,0.14216157,145.06,145.0,312.0]
[1740753571300,0.14216157,145.06,144.96,6.8984]
[1740753571301,3.45216849,145.05,144.91,12.2]
[1740753571490,0.14216157,145.04,144.92,6.9003]
[1740753571692,1.45216849,145.08,144.92,42.80074886]
[1740753571891,1.45216849,145.08,144.93,1.44812947]
[1740753572113,20.0,145.07,144.97,3.47893278]
[1740753572312,2.14216157,145.04,144.93,3.37418105]
[1740753572489,2.21036157,145.05,144.94,6.8994]
[1740753572690,1.45216849,145.08,144.97,20.0]
[1740753572895,2.0673,145.11,144.98,18.79181043]
[1740753573102,14.7068,145.12,145.0,18.64964886]
[1740753573507,12.6396,145.12,145.03,20.0]
[1740753573717,2.0666,145.16,145.03,20.0]
[1740753574023,3.51866849,145.17,145.06,20.0]
[1740753574202,3.51866849,145.17,145.13,312.0]
[1740753574512,2.0665,145.17,145.13,312.0]
[1740753574905,3.51866849,145.17,145.13,312.0]
[1740753575113,0.03,145.18,145.08,20.726485]
[1740753575289,0.03,145.18,145.09,6.8922]
[1740753575494,2.0964,145.18,145.09,6.8922]
[1740753575702,2.0964,145.18,145.08,10.387885]
[1740753576107,1.45216849,145.17,145.08,10.387885]
[1740753576387,3.54856849,145.18,145.08,10.387885]
[1740753577130,0.14216157,145.15,145.07,19.07193465]
[1740753577419,2.14216157,145.11,145.07,6.87193465]
[1740753577603,0.14216157,145.09,145.04,8.5899683]
[1740753577814,0.14216157,145.07,145.04,8.5899683]
[1740753577991,1.45216849,145.1,145.04,8.5899683]
[1740753578206,0.14216157,145.09,145.04,8.5899683]
[1740753578399,0.14216157,145.11,145.04,8.5899683]
[1740753578627,0.14216157,145.09,145.04,8.5899683]
[1740753578817,20.79181043,145.07,145.04,8.5899683]
[1740753579000,2.0682,145.05,145.04,1.3293683]
[1740753579201,23.96171043,145.07,145.0,0.063]
[1740753579202,2.0679,145.07,145.0,0.063]
[1740753579739,1.59433006,145.06,145.0,0.063]
[1740753580743,3.59433006,145.06,145.0,0.063]
[1740753581056,25.88844886,145.05,145.0,0.063]
[1740753581246,0.14216157,145.03,145.0,0.063]
[1740753581739,1.45216849,145.02,145.0,0.063]
[1740753581932,31.79661043,145.01,144.91,5.83394361]
[1740753582139,0.14216157,144.99,144.91,5.83394361]
[1740753582330,0.14216157,144.97,144.91,5.83394361]
[1740753582652,2.83096849,145.05,144.91,8.34947744]
[1740753582949,13.2876,145.07,144.94,20.0]
[1740753583125,11.909,145.13,145.01,20.0]
[1740753583452,11.909,145.13,145.02,20.0]
[1740753583645,11.909,145.13,145.03,32.18]
[1740753584339,13.2871,145.13,145.03,32.18]
[1740753584538,1.45216849,145.16,145.04,3.53546888]
[1740753584730,1.48216849,145.17,145.04,3.53546888]
[1740753584938,0.03,145.17,145.13,312.0]
[1740753585535,0.03,145.17,145.12,6.8907]
[1740753585845,0.03,145.17,145.16,20.0]
[1740753586149,0.03,145.18,145.17,20.0]
[1740753586728,0.03,145.18,145.16,3.45054764]
[1740753587050,0.03,145.18,145.17,20.0]
[1740753587627,0.03,145.18,145.16,6.8885]
[1740753587937,0.03,145.18,145.17,3.6562372]
[1740753588145,0.03,145.18,145.17,23.6562372]
[1740753588537,0.03,145.18,145.17,335.6562372]
[1740753588734,1.3763,145.32,145.2,20.0]
[1740753588934,1.45216849,145.34,145.21,12.18]
[1740753589149,2.82826849,145.34,145.21,19.0661]
[1740753589334,1.3761,145.34,145.21,19.0661]
[1740753589544,6.8163,145.34,145.21,12.18]
[1740753589749,18.64964886,145.32,145.21,11.18]
[1740753590052,0.45216849,145.31,145.21,11.18]
[1740753590251,18.79181043,145.32,145.21,11.18]
[1740753590456,18.79181043,145.32,145.14,116.1]
[1740753590457,18.79181043,145.3,145.14,116.1]
[1740753590632,0.14216157,145.28,145.18,20.0]
[1740753590840,0.14216157,145.28,145.15,12.18]
[1740753590841,18.79181043,145.26,145.15,12.18]
[1740753591036,0.45216849,145.25,145.15,18.20636846]
[1740753591235,0.14216157,145.24,145.15,18.20636846]
[1740753591438,0.45216849,145.23,145.15,18.20636846]
[1740753591637,18.79181043,145.22,145.15,6.02636846]
[1740753591852,0.14216157,145.2,145.15,6.02636846]
[1740753592051,0.45216849,145.19,145.15,6.02636846]
[1740753592232,18.64964886,145.22,145.15,6.02636846]
[1740753592233,0.14216157,145.21,145.15,6.02636846]
[1740753593045,0.14216157,145.21,145.11,6.8912]
[1740753593245,2.0661,145.2,145.1,6.8917]
[1740753593634,0.59433006,145.19,145.08,15.67732911]
[1740753593849,2.0661,145.2,145.08,15.67732911]
[1740753594045,0.45216849,145.22,145.08,15.67732911]
[1740753594046,2.51766849,145.24,145.09,18.64964886]
[1740753594263,14.5378,145.25,145.12,20.0]
[1740753594556,2.51716849,145.28,145.15,20.0]
[1740753594760,2.51716849,145.28,145.16,12.18]